bitfinex/quotes_SOLUSD_20251013
["timestamp","ask_amount","ask_price","bid_price","bid_amount"]
[1760372875914,9.66,198.41,198.35,20.8]
[1760372876116,9.66,198.4,198.35,20.8]
[1760372876334,0.71,198.4,198.34,5.04169713]
[1760372876516,0.71,198.4,198.31,25.84236283]
[1760372876732,0.71,198.39,198.31,25.84236283]
[1760372877129,0.71,198.39,198.31,5.04236283]
[1760372877630,9.66,198.38,198.28,44.28441688]
[1760372877853,0.71,198.39,198.29,15.91959387]
[1760372878143,0.71,198.38,198.29,5.04311866]
[1760372878318,0.71,198.37,198.26,15.92035698]
[1760372878639,4.22842131,198.35,198.23,10.87647521]
[1760372878830,4.22842131,198.35,198.26,20.8]
[1760372879015,0.71,198.34,198.26,20.8]
[1760372879215,0.71,198.33,198.2,5.04540867]
[1760372879422,10.37,198.32,198.2,5.04540867]
[1760372879746,5.04286434,198.3,198.2,5.04540867]
[1760372880324,5.04286434,198.3,198.2,17.65893036]
[1760372880532,0.71,198.29,198.18,0.2]
[1760372880731,0.71,198.38,198.18,5.24570646]
[1760372881039,10.35,198.37,198.18,17.86050109]
[1760372881243,0.71,198.37,198.22,31.67647521]
[1760372881417,0.71,198.4,198.22,31.67647521]
[1760372881619,4.22842131,198.37,198.22,31.67647521]
[1760372881927,21.51,198.39,198.19,5.04566325]
[1760372881928,4.22842131,198.33,198.19,5.04566325]
[1760372882134,4.22842131,198.29,198.19,5.04566325]
[1760372882337,0.10037281,198.2,198.18,0.2]
[1760372882534,9.66,198.19,198.18,5.24574575]
[1760372882737,0.10037281,198.2,198.18,5.24574575]
[1760372883138,0.81037281,198.2,198.18,0.2]
[1760372883329,9.64,198.19,198.18,0.2]
[1760372883537,0.71,198.19,198.18,0.2]
[1760372883739,10.35,198.19,198.18,0.2]
[1760372884050,0.10037281,198.2,198.18,5.24585537]
[1760372884247,9.74037281,198.2,198.18,5.24585537]
[1760372884450,0.10037281,198.2,198.18,5.24590397]
[1760372884932,9.66,198.19,198.18,5.24590397]
[1760372885522,0.10037281,198.2,198.18,0.2]
[1760372885719,9.64,198.19,198.18,0.2]
[1760372885923,0.71,198.19,198.18,0.2]
[1760372886348,14.57842131,198.19,198.04,12.62371238]
[1760372886553,0.71,198.18,198.05,11.07647521]
[1760372886733,0.10037281,198.2,198.12,20.8]
[1760372887831,0.10037281,198.2,198.13,5.04719123]
[1760372888032,4.22842131,198.18,198.06,12.62209212]
[1760372888346,0.71,198.19,198.1,20.8]
[1760372888734,4.22842131,198.17,198.05,5.04922999]
[1760372888922,0.71,198.16,198.05,5.04922999]
[1760372889129,9.64,198.15,198.06,10.87647521]
[1760372889331,0.71,198.16,198.06,10.87647521]
[1760372889332,9.64,198.14,198.06,10.87647521]
[1760372890026,9.64,198.13,198.07,17.67052051]
[1760372890239,0.71,198.19,198.07,17.67052051]
[1760372890440,9.64,198.18,198.07,17.67052051]
[1760372890730,0.71,198.19,198.11,20.8]
[1760372890952,0.10037281,198.2,198.1,20.8]
[1760372891157,9.64,198.19,198.1,20.8]
[1760372891461,0.10037281,198.2,198.11,20.8]
[1760372891663,9.62,198.19,198.11,20.8]
[1760372891863,0.10037281,198.2,198.11,20.8]
[1760372892162,0.10037281,198.2,198.15,20.8]
[1760372892550,0.10037281,198.2,198.15,21.0]
[1760372892868,0.10037281,198.2,198.16,10.87647521]
[1760372893084,9.62,198.19,198.18,20.8]
[1760372893249,0.10037281,198.2,198.18,20.8]
[1760372893451,0.10037281,198.2,198.15,131.5]
[1760372893648,0.10037281,198.2,198.15,152.3]
[1760372893843,0.10037281,198.2,198.13,10.87647521]
[1760372894067,0.10037281,198.2,198.17,20.8]
[1760372894471,0.10037281,198.2,198.18,10.87647521]
[1760372894654,0.10499922,198.22,198.18,10.87647521]
[1760372894655,0.00499922,198.22,198.18,11.58106699]
[1760372894976,0.10607586,198.25,198.18,11.38106699]
[1760372895470,0.10607586,198.25,198.18,10.87647521]
[1760372895976,9.7149206,198.24,198.23,10.87647521]
[1760372896164,0.0949206,198.24,198.23,10.87647521]
[1760372897264,0.0949206,198.24,198.22,20.8]
[1760372897461,9.7149206,198.24,198.22,20.8]
[1760372897662,0.0949206,198.24,198.22,20.8]
[1760372898050,0.0949206,198.24,198.23,5.0446451]
[1760372899150,0.10996795,198.26,198.23,5.0446451]
[1760372899151,0.10996795,198.26,198.25,10.87647521]
[1760372899346,0.09111528,198.28,198.25,20.8]
[1760372899551,0.81558943,198.27,198.23,5.0446451]
[1760372899857,0.10558943,198.27,198.24,10.87647521]
[1760372900053,0.71,198.26,198.15,10.87647521]
[1760372900465,9.6,198.25,198.19,10.87647521]
[1760372900783,9.6,198.24,198.19,10.87647521]
[1760372901072,0.71,198.24,198.2,2.4]
[1760372901246,0.71,198.23,198.2,2.4]
[1760372901448,0.71,198.22,198.2,2.4]
[1760372901648,0.71,198.22,198.12,10.87647521]
[1760372901875,4.93842131,198.22,198.11,17.6669527]
[1760372902065,4.93842131,198.22,198.08,20.8]
[1760372902263,0.09878261,198.12,198.05,17.67230497]
[1760372902767,0.71,198.11,198.05,17.67230497]
[1760372902980,0.71,198.11,198.0,5.05050505]
[1760372903168,0.71,198.11,198.03,20.8]
[1760372903364,0.09878261,198.12,198.07,20.8]
[1760372903680,0.09878261,198.12,198.08,10.87647521]
[1760372904053,0.09878261,198.12,198.09,17.66873642]
[1760372905890,9.69878261,198.12,198.09,17.66873642]
[1760372906060,0.09878261,198.12,198.09,17.66873642]
[1760372906384,0.71,198.11,198.09,5.0482104]
[1760372906581,9.58,198.1,198.09,5.0482104]
[1760372906751,0.09878261,198.12,198.09,5.0482104]
[1760372906954,0.71,198.11,198.07,25.84853376]
[1760372907378,0.09878261,198.12,198.04,5.04948495]
[1760372907577,0.71,198.1,198.04,5.04948495]
[1760372907779,0.71,198.09,198.0,17.67622665]
[1760372907951,9.58,198.08,198.03,20.8]
[1760372908281,0.71,198.07,198.0,17.67622665]
[1760372908465,0.71,198.06,198.0,17.67622665]
[1760372908775,0.09878261,198.12,198.08,20.8]
[1760372908979,9.69878261,198.12,198.08,20.8]
[1760372909179,0.09878261,198.12,198.09,10.87647521]
[1760372909882,0.71,198.11,198.04,10.87647521]
[1760372910379,0.71,198.11,198.03,20.8]
[1760372910380,0.71,198.11,198.05,5.04922999]
[1760372910560,0.71,198.11,198.05,17.67230497]
[1760372910756,9.58,198.1,198.05,17.67230497]
[1760372910956,9.58,198.09,198.05,17.67230497]
[1760372911154,0.09878261,198.12,198.06,2.4]
[1760372911357,9.58,198.11,198.06,2.4]
[1760372911566,0.09878261,198.12,198.06,2.4]
[1760372911768,0.09878261,198.12,198.08,20.8]
[1760372911974,0.09928498,198.13,198.11,31.67647521]
[1760372912179,0.11047425,198.15,198.14,20.8]
[1760372912372,0.11047425,198.15,198.14,25.8469365]
[1760372912580,1e-08,198.15,198.14,36.72341171]
[1760372913886,1e-08,198.15,198.14,5.0469365]
[1760372914085,9.58000001,198.15,198.14,5.0469365]
[1760372914292,10.29000001,198.15,198.11,20.8]
[1760372914472,1e-08,198.15,198.12,5.04744599]
[1760372914987,1e-08,198.15,198.12,17.66606097]
[1760372915888,9.58000001,198.15,198.12,17.66606097]
[1760372916599,0.10426724,198.17,198.15,31.67647521]
[1760372916890,1e-08,198.2,198.19,31.67647521]
[1760372917271,1e-08,198.2,198.16,10.87647521]
[1760372917474,1e-08,198.2,198.17,20.8]
[1760372917685,9.58,198.19,198.14,20.8]
[1760372917892,9.58,198.18,198.14,20.8]
[1760372918070,1e-08,198.2,198.14,20.8]
[1760372918271,9.58,198.19,198.14,20.8]
[1760372918591,9.58,198.18,198.15,17.66338631]
[1760372918763,9.58,198.17,198.15,17.66338631]
[1760372918964,1e-08,198.2,198.15,17.66338631]
[1760372919182,9.56,198.19,198.15,17.66338631]
[1760372919381,1e-08,198.2,198.18,20.8]
[1760372919765,1e-08,198.2,198.19,31.67647521]
[1760372920493,1e-08,198.2,198.19,25.84566325]
[1760372920711,0.71000001,198.2,198.15,5.0466818]
[1760372920987,0.71,198.19,198.15,17.66338631]
[1760372921187,1e-08,198.2,198.19,20.8]
[1760372921575,1e-08,198.2,198.19,31.67647521]
[1760372922284,1e-08,198.2,198.19,20.8]
[1760372922285,0.1084477,198.2,198.19,20.8]
[1760372922601,0.1084477,198.2,198.19,25.84566325]
[1760372923091,9.66844769,198.2,198.19,25.84566325]
[1760372923387,0.81844769,198.2,198.16,20.8]
[1760372923698,10.27,198.19,198.15,5.04645715]
[1760372923869,0.71,198.18,198.15,5.04645715]
[1760372924187,0.10844769,198.2,198.15,5.04645715]
[1760372924188,0.71,198.17,198.15,5.04645715]
[1760372924363,0.81844769,198.2,198.13,10.87647521]
[1760372924561,10.27,198.19,198.13,10.87647521]
[1760372924782,9.56,198.18,198.13,10.87647521]
[1760372924983,0.81844769,198.2,198.13,10.87647521]
[1760372925180,9.56,198.17,198.13,10.87647521]
[1760372925384,0.71,198.19,198.13,20.8]
[1760372926167,0.10844769,198.2,198.18,10.87647521]
[1760372926486,0.10844769,198.2,198.19,15.92213846]
[1760372926671,0.10844769,198.2,198.19,5.04566325]
[1760372927487,0.10844769,198.2,198.19,4.04566325]
[1760372928385,0.80844769,198.2,198.18,5.04591785]
[1760372928791,9.64844769,198.2,198.18,5.04591785]
[1760372928972,0.10844769,198.2,198.18,5.04591785]
[1760372929587,9.54,198.19,198.18,5.04591785]
[1760372929995,0.10844769,198.2,198.18,5.04591785]
[1760372930182,1e-08,198.2,198.19,10.87647521]
[1760372930387,1e-08,198.21,198.19,10.87647521]
[1760372932204,1e-08,198.21,198.2,15.92188388]
[1760372932797,1e-08,198.23,198.22,20.8]
[1760372933002,0.1061666,198.25,198.22,0.50448996]
[1760372933003,1e-08,198.24,198.22,0.50448996]
[1760372933302,8.58,198.37,198.31,20.8]
[1760372933506,0.66,198.38,198.31,20.8]
[1760372933876,9.54,198.37,198.31,20.8]
[1760372934185,0.66,198.42,198.34,10.87647521]
[1760372934713,0.66,198.42,198.34,31.67647521]
[1760372934896,10.2,198.42,198.34,31.67647521]
[1760372935070,0.1,198.41,198.34,31.67647521]
[1760372935276,0.66,198.39,198.34,31.67647521]
[1760372935497,0.66,198.38,198.34,20.8]
[1760372935791,0.66,198.37,198.33,5.04210154]
[1760372937173,0.1,198.41,198.36,20.8]
[1760372937494,0.1,198.41,198.38,20.8]
[1760372938011,1e-08,198.4,198.39,10.87647521]
[1760372938199,1e-08,198.41,198.4,31.67647521]
[1760372938495,1e-08,198.41,198.33,21.67071748]
[1760372938496,0.1,198.46,198.44,20.8]
[1760372938874,0.76,198.46,198.44,20.8]
[1760372939072,0.1,198.46,198.44,20.8]
[1760372939382,0.66,198.45,198.41,20.8]
[1760372939896,0.1,198.46,198.42,10.87647521]
[1760372940283,0.66,198.45,198.37,10.87647521]
[1760372941283,0.66,198.45,198.4,20.8]
[1760372941483,0.66,198.45,198.39,31.67647521]
[1760372941998,0.66,198.44,198.38,5.04083072]
[1760372942208,0.66,198.43,198.36,5.04133897]
[1760372942496,0.10741896,198.4,198.36,5.04133897]
[1760372942699,0.76741896,198.4,198.36,5.04133897]
[1760372943394,0.76741896,198.4,198.35,17.64543001]
[1760372943998,0.66,198.39,198.35,5.04159314]
[1760372944178,0.66,198.38,198.35,5.04159314]
[1760372945498,0.66,198.38,198.34,5.04184733]
[1760372947007,0.66,198.37,198.34,5.04184733]
[1760372947183,0.66,198.36,198.29,12.60749878]
[1760372947379,0.66,198.35,198.29,5.04311866]
[1760372947589,0.66,198.34,198.29,5.04311866]
[1760372947989,0.66,198.33,198.23,23.48757233]
[1760372948194,9.54,198.32,198.23,17.65574222]
[1760372948404,0.66,198.31,198.24,10.87647521]
[1760372948704,0.66,198.3,198.24,10.87647521]
[1760372948909,0.66,198.29,198.21,5.04515412]
[1760372949085,7.01454072,198.28,198.21,5.04515412]
[1760372949287,7.01454072,198.27,198.17,10.87647521]
[1760372949512,12.05842249,198.26,198.03,5.04973993]
[1760372949685,6.35454072,198.24,198.05,12.62307498]
[1760372949887,10.2,198.23,198.08,20.8]
[1760372950082,9.54,198.22,198.05,37.86922494]
[1760372950302,9.54,198.22,198.06,10.87647521]
[1760372951107,0.66,198.21,198.1,10.87647521]
[1760372951308,6.35454072,198.23,198.06,10.87647521]
[1760372951610,20.8,198.31,198.18,20.8]
[1760372951611,0.66,198.25,198.18,20.8]
[1760372952191,10.2,198.28,198.19,10.87647521]
[1760372952599,0.66,198.28,198.19,10.87647521]
[1760372952785,10.2,198.28,198.19,10.87647521]
[1760372953017,0.66,198.27,198.19,10.87647521]
[1760372953390,0.66,198.27,198.2,17.65893036]
[1760372957597,0.66,198.31,198.24,20.8]
[1760372957799,0.66,198.31,198.21,31.67647521]
[1760372958003,7.01454072,198.31,198.21,31.67647521]
[1760372958191,9.54,198.3,198.21,31.67647521]
[1760372958390,0.66,198.31,198.21,31.67647521]
[1760372958909,10.2,198.3,198.22,5.0448996]
[1760372959114,10.2,198.3,198.22,17.65714861]
[1760372959312,0.66,198.3,198.22,17.65714861]
[1760372959516,6.35454072,198.3,198.22,17.65714861]
[1760372959817,20.10741895,198.4,198.26,20.8]
[1760372959994,0.10741896,198.4,198.26,31.67647521]
[1760372960196,9.54,198.39,198.26,31.67647521]
[1760372960691,0.66,198.39,198.26,31.67647521]
[1760372960897,0.66,198.39,198.31,20.8]
[1760372961106,9.54,198.38,198.31,20.8]
[1760372962416,0.09466701,198.32,198.31,20.8]
[1760372962998,0.09466701,198.32,198.31,25.84261005]
[1760372965306,0.09122257,198.33,198.31,5.04261005]
[1760372965508,0.09122257,198.33,198.32,20.8]
[1760372966495,0.09122257,198.33,198.31,5.04261005]
[1760372970096,0.10847422,198.35,198.33,10.87647521]
[1760372970295,0.10847422,198.35,198.33,221.97647521]
[1760372971115,0.10847422,198.35,198.33,10.87647521]
[1760372971303,0.10847422,198.35,198.31,20.8]
[1760372971626,0.10847422,198.35,198.33,20.8]
[1760372972913,0.10847422,198.35,198.34,10.87647521]
[1760372973318,0.10526229,198.38,198.36,20.8]
[1760372973709,0.10526229,198.38,198.36,31.67647521]
[1760372974111,0.76018171,198.37,198.36,20.8]
[1760372974324,0.10018171,198.37,198.36,20.8]
[1760372974518,0.10018171,198.37,198.36,31.67647521]
[1760372974901,0.10018171,198.37,198.36,20.8]
[1760372975108,0.76018171,198.37,198.34,17.64646566]
[1760372975631,0.10018171,198.37,198.34,17.64646566]
[1760372976930,0.66,198.36,198.33,5.04205587]
[1760372977131,0.66,198.36,198.24,25.22075488]
[1760372977132,0.66,198.35,198.25,5.04413619]
[1760372977429,0.76018171,198.37,198.26,10.87647521]
[1760372977610,0.10018171,198.37,198.26,31.67647521]
[1760372977807,0.66,198.36,198.26,10.87647521]
[1760372978017,0.66,198.36,198.29,10.87647521]
[1760372978625,0.66,198.35,198.29,10.87647521]
[1760372978837,0.66,198.35,198.3,5.04286434]
[1760372979018,0.66,198.34,198.3,5.04286434]
[1760372979504,0.66,198.33,198.3,5.04286434]
[1760372979824,0.10018171,198.37,198.3,5.04286434]
[1760372980032,0.66,198.33,198.3,5.04286434]
[1760372980830,0.66,198.35,198.3,5.04286434]
[1760372981002,0.66,198.34,198.29,17.65080354]
[1760372982226,0.10018171,198.37,198.3,10.87647521]
[1760372982427,0.10642012,198.31,198.3,10.87647521]
[1760372983909,0.10960796,198.32,198.3,10.87647521]
[1760372983910,0.10583123,198.33,198.32,20.8]
[1760372984105,0.10583123,198.33,198.32,36.71883099]
[1760372984324,0.10435621,198.34,198.33,10.87647521]
[1760372984718,0.10435621,198.34,198.33,31.67647521]
[1760372984907,0.10435621,198.34,198.32,15.91883099]
[1760372985224,0.10435621,198.34,198.32,5.04235578]
[1760372985613,0.10435621,198.34,198.3,5.04264433]
[1760372985614,0.66,198.33,198.3,5.04264433]
[1760372985831,0.66,198.32,198.3,5.04264433]
[1760372986213,0.66,198.32,198.28,12.6079312]
[1760372986414,0.66,198.31,198.28,12.6079312]
[1760372986944,0.76435621,198.34,198.28,12.6079312]
[1760372987139,0.0921085,198.37,198.35,10.87647521]
[1760372987320,0.66,198.5,198.38,31.67647521]
[1760372987931,0.7,198.47,198.38,31.67647521]
[1760372988135,0.7,198.47,198.4,10.87647521]
[1760372988440,5.03808546,198.49,198.4,10.87647521]
[1760372988739,0.8,198.46,198.4,10.87647521]
[1760372989619,0.1,198.46,198.39,17.64201824]
[1760372989814,0.68,198.45,198.39,17.64201824]
[1760372990230,0.68,198.44,198.39,5.04057664]
[1760372990433,0.68,198.43,198.38,25.84080026]
[1760372990618,0.68,198.42,198.38,25.84080026]
[1760372990829,0.68,198.41,198.38,25.84080026]
[1760372991219,0.68,198.41,198.38,5.04080026]
[1760372991421,0.68,198.41,198.35,17.64530952]
[1760372993124,0.78,198.46,198.36,10.87647521]
[1760372993428,15.33895573,198.46,198.37,17.64379694]
[1760372993626,0.68,198.45,198.37,17.64379694]
[1760372993831,10.2,198.45,198.37,17.64379694]
[1760372994136,0.68,198.44,198.37,5.04108484]
[1760372994447,0.68,198.43,198.37,5.04108484]
[1760372995029,0.68,198.43,198.3,25.21428981]
[1760372995030,10.2,198.42,198.32,10.87647521]
[1760372995345,0.68,198.41,198.2,10.87647521]
[1760372995526,20.8,198.43,198.21,17.65803944]
[1760372995527,4.22791804,198.37,198.21,17.65803944]
[1760372995721,27.84112903,198.4,198.21,17.65803944]
[1760372995722,4.22791804,198.35,198.21,17.65803944]
[1760372995923,0.68,198.34,198.21,17.65803944]
[1760372996125,10.2,198.33,198.24,20.8]
[1760372996325,0.68,198.33,198.24,20.8]
[1760372996522,0.68,198.33,198.22,10.87647521]
[1760372996727,10.2,198.32,198.22,10.87647521]
[1760372997140,0.68,198.32,198.25,20.8]
[1760372997336,4.22791804,198.34,198.22,10.87647521]
[1760372997645,0.68,198.31,198.23,17.65625787]
[1760372998152,5.72279817,198.31,198.23,17.65625787]
[1760372998450,9.52,198.3,198.23,17.65625787]
[1760372998749,0.68,198.29,198.23,17.65625787]
[1760372998950,10.2,198.29,198.23,17.65625787]
[1760372999444,5.04316442,198.29,198.23,5.0446451]
[1760372999651,10.2,198.28,198.23,5.0446451]
[1760373000546,10.2,198.28,198.2,23.48951497]
[1760373000547,0.68,198.28,198.21,17.65803944]
[1760373000755,20.8,198.36,198.21,17.65803944]
[1760373000756,10.2,198.34,198.24,20.8]
[1760373001043,4.22791804,198.32,198.24,20.8]
[1760373001229,17.64290754,198.38,198.21,17.65803944]
[1760373001230,14.42791804,198.31,198.21,17.65803944]
[1760373001425,0.68,198.34,198.22,10.87647521]
[1760373001624,0.68,198.34,198.24,20.8]
[1760373001842,9.52,198.33,198.24,20.8]
[1760373002025,0.68,198.34,198.25,10.87647521]
[1760373002232,0.68,198.37,198.25,10.87647521]
[1760373002538,0.10829829,198.26,198.25,15.9206114]
[1760373002741,0.10829829,198.26,198.25,227.0206114]
[1760373002948,0.10829829,198.26,198.25,216.14413619]
[1760373003557,0.10829829,198.26,198.25,227.0206114]
[1760373004956,0.10829829,198.26,198.25,216.14413619]
[1760373005156,0.10829829,198.26,198.24,20.8]
[1760373005157,0.10829829,198.26,198.24,84.84417018]
[1760373006357,0.10829829,198.26,198.25,10.87647521]
[1760373006653,0.10000047,198.27,198.25,15.9206114]
[1760373006868,0.1019271,198.28,198.27,31.67647521]
[1760373007568,0.1019271,198.28,198.26,0.50438817]
[1760373007569,0.68,198.41,198.31,10.87647521]
[1760373007735,0.68,198.41,198.26,0.50438817]
[1760373007736,0.68,198.44,198.32,10.87647521]
[1760373007931,0.68,198.42,198.32,10.87647521]
[1760373008134,0.68,198.48,198.4,10.87647521]
[1760373008359,4.22791804,198.54,198.4,10.87647521]
[1760373008547,0.68,198.51,198.42,10.87647521]
[1760373008754,0.68,198.47,198.41,17.6402399]
[1760373008935,5.03667858,198.55,198.42,31.67647521]
[1760373009140,0.68,198.52,198.42,31.67647521]
[1760373009538,0.68,198.56,198.45,31.67647521]
[1760373009779,0.68,198.56,198.46,10.87647521]
[1760373009950,0.68,198.56,198.5,10.87647521]
[1760373010151,0.68,198.6,198.5,10.87647521]
[1760373010747,0.1,198.62,198.52,10.87647521]
[1760373010945,0.68,198.6,198.52,10.87647521]
[1760373011662,4.90791804,198.59,198.51,5.03752959]
[1760373011965,0.68,198.58,198.51,5.03752959]
[1760373012138,0.68,198.57,198.51,5.03752959]
[1760373012343,0.68,198.56,198.51,5.03752959]
[1760373012751,0.68,198.55,198.5,5.03778337]
[1760373012957,0.68,198.54,198.5,5.03778337]
[1760373013655,0.68,198.54,198.39,5.55735873]
[1760373013656,0.68,198.53,198.41,10.87647521]
[1760373014660,5.71727584,198.52,198.4,25.2016129]
[1760373014869,5.71727584,198.52,198.41,10.87647521]
[1760373015266,5.71727584,198.52,198.41,142.17647521]
[1760373015468,4.22791804,198.49,198.36,17.64468641]
[1760373015649,4.90791804,198.48,198.37,10.87647521]
[1760373015840,4.90791804,198.47,198.36,17.64468641]
[1760373016040,0.68,198.46,198.36,17.64468641]
[1760373016363,0.68,198.46,198.37,10.87647521]
[1760373016537,0.68,198.5,198.4,20.8]
[1760373016737,5.7171438,198.53,198.43,10.87647521]
[1760373016944,0.68,198.53,198.43,10.87647521]
[1760373017245,0.68,198.53,198.43,31.67647521]
[1760373017444,9.52,198.55,198.43,31.67647521]
[1760373017762,4.90791804,198.54,198.43,31.67647521]
[1760373017948,0.68,198.53,198.43,31.67647521]
[1760373018149,10.2,198.53,198.43,31.67647521]
[1760373018362,4.90791804,198.53,198.43,31.67647521]
[1760373018662,4.22791804,198.48,198.4,10.87647521]
[1760373018863,4.22791804,198.5,198.4,10.87647521]
[1760373019042,4.22791804,198.5,198.39,10.87647521]
[1760373019043,0.68,198.49,198.39,10.87647521]
[1760373019360,0.68,198.49,198.42,20.8]
[1760373019553,0.66,198.57,198.46,20.8]
[1760373020044,0.66,198.56,198.46,20.8]
[1760373020245,0.66,198.55,198.46,20.8]
[1760373020567,0.66,198.54,198.46,20.8]
[1760373020751,9.92480846,198.54,198.47,5.03854486]
[1760373020950,4.22791804,198.52,198.44,20.8]
[1760373021259,0.66,198.56,198.45,10.87647521]
[1760373022041,20.9,198.61,198.53,10.87647521]
[1760373022042,0.1,198.61,198.53,10.87647521]
[1760373022554,0.1,198.61,198.6,31.67647521]
[1760373022963,0.1,198.61,198.6,25.83524672]
[1760373023168,0.1,198.61,198.55,12.59080955]
[1760373023340,0.1,198.61,198.56,5.03602388]
[1760373023741,0.1,198.61,198.57,31.67647521]
[1760373024656,0.1,198.61,198.57,20.8]
[1760373024862,0.76,198.61,198.56,20.8]
[1760373025166,0.1,198.61,198.56,20.8]
[1760373025746,0.1,198.61,198.57,10.87647521]
[1760373026150,0.1,198.61,198.58,10.87647521]
[1760373026672,0.1,198.61,198.52,10.87647521]
[1760373026870,0.1,198.61,198.6,5.03524672]
[1760373028376,0.1,198.61,198.55,10.87647521]
[1760373028560,0.66,198.6,198.54,20.8]
[1760373028758,6.98509541,198.59,198.53,5.03702211]
[1760373028946,6.98509541,198.58,198.51,5.03752959]
[1760373029147,0.66,198.57,198.51,5.03752959]
[1760373029467,12.687483,198.61,198.51,5.03752959]
[1760373029468,0.1,198.61,198.52,10.87647521]
[1760373029642,0.1,198.61,198.56,10.87647521]
[1760373030361,0.76,198.61,198.55,10.87647521]
[1760373030564,0.76,198.61,198.54,20.8]
[1760373031064,0.76,198.61,198.55,5.03651473]
[1760373031261,11.46008928,198.61,198.51,12.59341565]
[1760373031467,6.32509541,198.58,198.42,10.87647521]
[1760373031782,6.98509541,198.57,198.45,10.87647521]
[1760373031947,6.32509541,198.55,198.44,12.59826647]
[1760373032145,0.66,198.54,198.44,12.59826647]
[1760373032350,0.66,198.54,198.45,10.87647521]
[1760373032666,0.66,198.54,198.45,31.67647521]
[1760373032870,5.69702211,198.53,198.44,12.59826647]
[1760373033049,12.02211752,198.53,198.44,12.59826647]
[1760373033767,6.32509541,198.57,198.45,10.87647521]
[1760373033964,6.98509541,198.54,198.44,12.59826647]
[1760373034275,9.5,198.55,198.47,20.8]
[1760373034446,5.79503125,198.61,198.48,10.87647521]
[1760373034647,12.12012666,198.61,198.51,20.8]
[1760373034846,6.32509541,198.59,198.49,17.63307787]
[1760373035065,6.32509541,198.55,198.45,10.87647521]
[1760373035271,0.66,198.54,198.48,20.8]
[1760373035475,0.66,198.53,198.41,31.67647521]
[1760373035865,0.66,198.57,198.41,31.67647521]
[1760373036165,0.66,198.57,198.41,32.18048206]
[1760373036366,5.03534705,198.6,198.41,32.18048206]
[1760373036673,6.98509541,198.59,198.41,32.18048206]
[1760373036881,12.02070331,198.59,198.42,42.83842353]
[1760373037176,15.1956079,198.59,198.46,31.67647521]
[1760373037475,5.6956079,198.59,198.46,31.67647521]
[1760373038055,6.32509541,198.57,198.5,20.8]
[1760373038380,6.98509541,198.56,198.47,17.63490703]
[1760373038981,16.48509541,198.56,198.47,17.63490703]
[1760373039277,6.32509541,198.54,198.47,5.03854486]
[1760373039452,0.66,198.53,198.47,5.03854486]
[1760373040056,0.66,198.53,198.44,17.63701526]
[1760373040571,0.66,198.57,198.49,10.87647521]
[1760373040870,6.32509541,198.54,198.44,38.43701526]
[1760373041083,6.98509541,198.53,198.44,38.43701526]
[1760373041454,10.16,198.53,198.44,38.43701526]
[1760373041659,6.98509541,198.53,198.44,38.43701526]
[1760373041871,16.48509541,198.53,198.44,38.43701526]
[1760373042077,6.32509541,198.51,198.44,25.83930659]
[1760373042382,0.10206646,198.45,198.42,5.03960383]
[1760373042592,0.66,198.44,198.26,5.04388177]
[1760373042881,0.66,198.44,198.28,12.60843251]
[1760373043085,6.42716187,198.45,198.28,12.60843251]
[1760373043086,6.98509541,198.43,198.28,12.60843251]
[1760373043258,6.32509541,198.4,198.28,12.60843251]
[1760373043462,0.66,198.39,198.28,12.60843251]
[1760373043664,6.32509541,198.37,198.28,12.60843251]
[1760373043884,6.98509541,198.36,198.28,12.60843251]
[1760373044188,6.32509541,198.34,198.22,17.65714861]
[1760373044386,6.32509541,198.29,198.22,5.0448996]
[1760373044569,6.32509541,198.3,198.22,5.0448996]
[1760373044886,16.48509541,198.31,198.22,5.0448996]
[1760373045081,6.32509541,198.29,198.22,17.65714861]
[1760373045289,6.98509541,198.28,198.22,5.0448996]